fUST/lending_fUST_20260514
["ID","MTS","AMOUNT","RATE_DAILY","PERIOD"]
[422232602,1778737861000,-500.0,0.00011506,2]
[422232649,1778737861000,-151.0,0.0001178,2]
[422232699,1778737861000,-400.0,0.0001178,2]
[422232641,1778737861000,-151.0,0.0001178,2]
[422232681,1778737861000,-400.0,0.0001178,2]
[422232678,1778737861000,-400.0,0.0001178,2]
[422232682,1778737861000,-400.0,0.0001178,2]
[422232679,1778737861000,-500.77321997,0.0001178,2]
[422232676,1778737861000,-151.0,0.0001178,2]
[422232685,1778737861000,-500.0,0.0001178,2]
[422232684,1778737861000,-500.0,0.0001178,2]
[422232683,1778737861000,-637.99160123,0.0001178,2]
[422232688,1778737861000,-500.0,0.0001178,2]
[422232690,1778737861000,-618.26,0.0001178,2]
[422232691,1778737861000,-500.0,0.0001178,2]
[422232689,1778737861000,-500.0,0.0001178,2]
[422232692,1778737861000,-500.0,0.0001178,2]
[422232693,1778737861000,-799.79,0.0001178,2]
[422232694,1778737861000,-500.0,0.0001178,2]
[422232696,1778737861000,-289.176955,0.0001178,2]
[422232695,1778737861000,-151.0,0.0001178,2]
[422232698,1778737861000,-400.0,0.0001178,2]
[422232697,1778737861000,-500.0,0.0001178,2]
[422232701,1778737861000,-400.0,0.0001178,2]
[422232642,1778737861000,-151.0,0.0001178,2]
[422232704,1778737861000,-400.0,0.0001178,2]
[422232700,1778737861000,-500.0,0.0001178,2]
[422232703,1778737861000,-400.0,0.0001178,2]
[422232705,1778737861000,-500.0,0.0001178,2]
[422232680,1778737861000,-400.0,0.0001178,2]
[422232687,1778737861000,-500.0,0.0001178,2]
[422232702,1778737861000,-400.0,0.0001178,2]
[422232675,1778737861000,-151.0,0.0001178,2]
[422232677,1778737861000,-500.0,0.0001178,2]
[422232648,1778737861000,-151.0,0.0001178,2]
[422232647,1778737861000,-151.0,0.0001178,2]
[422232662,1778737861000,-500.0,0.0001178,2]
[422232651,1778737861000,-500.0,0.0001178,2]
[422232663,1778737861000,-500.0,0.0001178,2]
[422232653,1778737861000,-154.53792987,0.0001178,2]
[422232661,1778737861000,-500.0,0.0001178,2]
[422232655,1778737861000,-500.0,0.0001178,2]
[422232658,1778737861000,-501.41904111,0.0001178,2]
[422232654,1778737861000,-537.19,0.0001178,2]
[422232656,1778737861000,-500.0,0.0001178,2]
[422232657,1778737861000,-501.90165163,0.0001178,2]
[422232652,1778737861000,-345.46207013,0.0001178,2]
[422232659,1778737861000,-500.0,0.0001178,2]
[422232660,1778737861000,-501.93456078,0.0001178,2]
[422232672,1778737861000,-500.0,0.0001178,2]
[422232673,1778737861000,-151.0,0.0001178,2]
[422232665,1778737861000,-857.24,0.0001178,2]
[422232668,1778737861000,-151.0,0.0001178,2]
[422232671,1778737861000,-500.0,0.0001178,2]
[422232670,1778737861000,-151.0,0.0001178,2]
[422232669,1778737861000,-151.0,0.0001178,2]
[422232666,1778737861000,-500.0,0.0001178,2]
[422232664,1778737861000,-465.65843842,0.0001178,2]
[422232667,1778737861000,-500.0,0.0001178,2]
[422232674,1778737861000,-151.0,0.0001178,2]
[422232736,1778737862000,-500.0,0.0001178,2]
[422232741,1778737862000,-500.0,0.0001178,2]
[422232731,1778737862000,-151.0,0.0001178,2]
[422232725,1778737862000,-492.45,0.0001178,2]
[422232730,1778737862000,-500.0,0.0001178,2]
[422232734,1778737862000,-194.97906,0.0001178,2]
[422232739,1778737862000,-194.97906,0.0001178,2]
[422232748,1778737862000,-162.335452,0.0001178,2]
[422232738,1778737862000,-163.792284,0.0001178,2]
[422232737,1778737862000,-194.97906,0.0001178,2]
[422232743,1778737862000,-196.98,0.0001178,2]
[422232742,1778737862000,-196.98,0.0001178,2]
[422232745,1778737862000,-196.98,0.0001178,2]
[422232744,1778737862000,-500.0,0.0001178,2]
[422232747,1778737862000,-500.0,0.0001178,2]
[422232746,1778737862000,-196.98,0.0001178,2]
[422232751,1778737862000,-162.335452,0.0001178,2]
[422232749,1778737862000,-500.0,0.0001178,2]
[422232750,1778737862000,-162.335452,0.0001178,2]
[422232733,1778737862000,-151.0,0.0001178,2]
[422232740,1778737862000,-831.15,0.0001178,2]
[422232735,1778737862000,-151.0,0.0001178,2]
[422232717,1778737862000,-363.127352,0.00011232,2]
[422232726,1778737862000,-492.45,0.0001178,2]
[422232706,1778737862000,-400.0,0.0001178,2]
[422232709,1778737862000,-492.45,0.0001178,2]
[422232708,1778737862000,-492.45,0.0001178,2]
[422232707,1778737862000,-400.0,0.0001178,2]
[422232711,1778737862000,-157.58633041,0.0001178,2]
[422232710,1778737862000,-500.0,0.0001178,2]
[422232712,1778737862000,-288.07357235,0.0001178,2]
[422232714,1778737862000,-363.127352,0.00010959,2]
[422232713,1778737862000,-249.179776,0.00010959,2]
[422232715,1778737862000,-249.179776,0.00010959,2]
[422232719,1778737862000,-249.179776,0.00011232,2]
[422232720,1778737862000,-249.179776,0.00011232,2]
[422232716,1778737862000,-249.179776,0.00011232,2]
[422232718,1778737862000,-363.127352,0.00011232,2]
[422232722,1778737862000,-363.127354,0.00011506,2]
[422232721,1778737862000,-249.179776,0.00011506,2]
[422232723,1778737862000,-249.17978,0.00011506,2]
[422232724,1778737862000,-46.79009724,0.0001178,2]
[422232727,1778737862000,-492.45,0.0001178,2]
[422232728,1778737862000,-492.45,0.0001178,2]
[422232729,1778737862000,-492.45,0.0001178,2]
[422232732,1778737862000,-194.97906,0.0001178,2]
[422232760,1778737862000,-500.0,0.0001178,2]
[422232752,1778737862000,-500.0,0.0001178,2]
[422232753,1778737862000,-162.335452,0.0001178,2]
[422232780,1778737862000,-500.0,0.0001178,2]
[422232782,1778737862000,-500.0,0.0001178,2]
[422232784,1778737862000,-500.0,0.0001178,2]
[422232787,1778737862000,-300.0,0.0001178,2]
[422232786,1778737862000,-300.0,0.0001178,2]
[422232785,1778737862000,-1145.36,0.0001178,2]
[422232783,1778737862000,-500.85234621,0.0001178,2]
[422232789,1778737862000,-300.0,0.0001178,2]
[422232788,1778737862000,-500.0,0.0001178,2]
[422232776,1778737862000,-500.0,0.0001178,2]
[422232795,1778737862000,-1863.33,0.0001178,2]
[422232790,1778737862000,-500.0,0.0001178,2]
[422232791,1778737862000,-300.0,0.0001178,2]
[422232792,1778737862000,-550.23,0.0001178,2]
[422232798,1778737862000,-599.85,0.0001178,2]
[422232799,1778737862000,-500.0,0.0001178,2]
[422232797,1778737862000,-744.7,0.0001178,2]
[422232796,1778737862000,-500.0,0.0001178,2]
[422232800,1778737862000,-974.91,0.0001178,2]
[422232761,1778737862000,-500.0,0.0001178,2]
[422232794,1778737862000,-500.0,0.0001178,2]
[422232781,1778737862000,-838.67,0.0001178,2]
[422232793,1778737862000,-500.0,0.0001178,2]
[422232778,1778737862000,-556.510955,0.0001178,2]
[422232779,1778737862000,-556.510959,0.0001178,2]
[422232759,1778737862000,-500.0,0.0001178,2]
[422232758,1778737862000,-500.0,0.0001178,2]
[422232755,1778737862000,-2217.95,0.0001178,2]
[422232754,1778737862000,-500.0,0.0001178,2]
[422232757,1778737862000,-500.0,0.0001178,2]
[422232756,1778737862000,-500.0,0.0001178,2]
[422232762,1778737862000,-285.70485113,0.0001178,2]
[422232773,1778737862000,-151.0,0.0001178,2]
[422232774,1778737862000,-820.05,0.0001178,2]
[422232764,1778737862000,-500.0,0.0001178,2]
[422232763,1778737862000,-500.0,0.0001178,2]
[422232766,1778737862000,-500.0,0.0001178,2]
[422232775,1778737862000,-556.510955,0.0001178,2]
[422232771,1778737862000,-500.0,0.0001178,2]
[422232767,1778737862000,-500.0,0.0001178,2]
[422232768,1778737862000,-171.562634,0.0001178,2]
[422232777,1778737862000,-556.510955,0.0001178,2]
[422232769,1778737862000,-500.0,0.0001178,2]
[422232772,1778737862000,-171.562634,0.0001178,2]
[422232765,1778737862000,-171.562634,0.0001178,2]
[422232770,1778737862000,-171.562634,0.0001178,2]
[422232845,1778737863000,-500.0,0.0001178,2]
[422232829,1778737863000,-856.46,0.0001178,2]
[422232823,1778737863000,-500.0,0.0001178,2]
[422232828,1778737863000,-1983.22,0.0001178,2]
[422232827,1778737863000,-500.0,0.0001178,2]
[422232826,1778737863000,-500.0,0.0001178,2]
[422232834,1778737863000,-500.0,0.0001178,2]
[422232844,1778737863000,-500.0,0.0001178,2]
[422232838,1778737863000,-500.0,0.0001178,2]
[422232836,1778737863000,-500.0,0.0001178,2]
[422232833,1778737863000,-696.36,0.0001178,2]
[422232851,1778737863000,-1968.56,0.0001178,2]
[422232837,1778737863000,-500.0,0.0001178,2]
[422232839,1778737863000,-500.0,0.0001178,2]
[422232841,1778737863000,-500.0,0.0001178,2]
[422232846,1778737863000,-500.0,0.0001178,2]
[422232843,1778737863000,-659.65,0.0001178,2]
[422232842,1778737863000,-767.84,0.0001178,2]
[422232840,1778737863000,-500.0,0.0001178,2]
[422232847,1778737863000,-902.47,0.0001178,2]
[422232850,1778737863000,-502.26944084,0.0001178,2]
[422232825,1778737863000,-500.0,0.0001178,2]
[422232835,1778737863000,-500.0,0.0001178,2]
[422232830,1778737863000,-500.0,0.0001178,2]
[422232806,1778737863000,-500.0,0.0001178,2]
[422232832,1778737863000,-644.66,0.0001178,2]
[422232802,1778737863000,-500.0,0.0001178,2]
[422232849,1778737863000,-500.0,0.0001178,2]
[422232805,1778737863000,-500.0,0.0001178,2]
[422232807,1778737863000,-500.0,0.0001178,2]
[422232803,1778737863000,-500.0,0.0001178,2]
[422232804,1778737863000,-500.0,0.0001178,2]
[422232808,1778737863000,-500.0,0.0001178,2]
[422232801,1778737863000,-500.0,0.0001178,2]
[422232810,1778737863000,-500.0,0.0001178,2]
[422232814,1778737863000,-819.52,0.0001178,2]
[422232813,1778737863000,-500.0,0.0001178,2]
[422232809,1778737863000,-500.0,0.0001178,2]
[422232812,1778737863000,-500.0,0.0001178,2]
[422232811,1778737863000,-500.0,0.0001178,2]
[422232815,1778737863000,-852.34,0.0001178,2]
[422232819,1778737863000,-500.0,0.0001178,2]
[422232818,1778737863000,-500.0,0.0001178,2]
[422232816,1778737863000,-1100.77,0.0001178,2]
[422232817,1778737863000,-718.21,0.0001178,2]
[422232820,1778737863000,-491.18865784,0.0001178,2]
[422232824,1778737863000,-500.0,0.0001178,2]
[422232821,1778737863000,-1991.98,0.0001178,2]
[422232831,1778737863000,-500.0,0.0001178,2]
[422232822,1778737863000,-500.0,0.0001178,2]
[422232848,1778737863000,-475.73732923,0.0001178,2]
[422232868,1778737863000,-500.0,0.0001178,2]
[422232859,1778737863000,-500.0,0.0001178,2]
[422232880,1778737863000,-500.0,0.0001178,2]
[422232879,1778737863000,-500.0,0.0001178,2]
[422232885,1778737863000,-4803.78,0.0001178,2]
[422232896,1778737863000,-4063.9,0.0001178,2]
[422232895,1778737863000,-500.0,0.0001178,2]
[422232884,1778737863000,-565.00707907,0.0001178,2]
[422232888,1778737863000,-2447.19,0.0001178,2]
[422232858,1778737863000,-500.0,0.0001178,2]
[422232891,1778737863000,-500.0,0.0001178,2]
[422232887,1778737863000,-500.0,0.0001178,2]
[422232889,1778737863000,-1802.87,0.0001178,2]
[422232890,1778737863000,-3289.87,0.0001178,2]
[422232886,1778737863000,-500.0,0.0001178,2]
[422232893,1778737863000,-500.0,0.0001178,2]
[422232892,1778737863000,-500.0,0.0001178,2]
[422232897,1778737863000,-3054.65,0.0001178,2]
[422232898,1778737863000,-500.0,0.0001178,2]
[422232899,1778737863000,-500.0,0.0001178,2]
[422232902,1778737863000,-1201.66,0.0001178,2]
[422232901,1778737863000,-500.0,0.0001178,2]
[422232900,1778737863000,-500.0,0.0001178,2]
[422232903,1778737863000,-500.0,0.0001178,2]
[422232904,1778737863000,-338.78050897,0.0001178,2]
[422232881,1778737863000,-1365.86,0.0001178,2]
[422232883,1778737863000,-500.0,0.0001178,2]
[422232894,1778737863000,-858.2,0.0001178,2]
[422232874,1778737863000,-1574.8,0.0001178,2]
[422232854,1778737863000,-1352.23,0.0001178,2]
[422232857,1778737863000,-500.0,0.0001178,2]
[422232878,1778737863000,-1107.16,0.0001178,2]
[422232856,1778737863000,-673.22,0.0001178,2]
[422232855,1778737863000,-587.98,0.0001178,2]
[422232853,1778737863000,-500.0,0.0001178,2]
[422232861,1778737863000,-500.0,0.0001178,2]
[422232860,1778737863000,-3876.57,0.0001178,2]
[422232863,1778737863000,-1694.24,0.0001178,2]
[422232862,1778737863000,-500.0,0.0001178,2]
[422232867,1778737863000,-529.62,0.0001178,2]
[422232852,1778737863000,-500.0,0.0001178,2]
[422232877,1778737863000,-500.0,0.0001178,2]
[422232875,1778737863000,-500.0,0.0001178,2]
[422232871,1778737863000,-500.0,0.0001178,2]
[422232873,1778737863000,-500.0,0.0001178,2]
[422232876,1778737863000,-1211.98,0.0001178,2]
[422232872,1778737863000,-968.84,0.0001178,2]
[422232865,1778737863000,-3891.13104866,0.0001178,2]
[422232864,1778737863000,-500.0,0.0001178,2]
[422232866,1778737863000,-740.27895134,0.0001178,2]
[422232869,1778737863000,-500.0,0.0001178,2]
[422232870,1778737863000,-561.09160007,0.0001178,2]
[422232882,1778737863000,-500.0,0.0001178,2]
[422232943,1778739031000,-1343.7500641,8.647e-05,2]
[422232944,1778739031000,-3656.2499359,8.647e-05,2]
[422232973,1778739032000,-500.0,9.023e-05,2]
[422232971,1778739032000,-192.77299189,9e-05,2]
[422232978,1778739032000,-500.0,9.023e-05,2]
[422232990,1778739032000,-32.54210249,9.023e-05,2]
[422232986,1778739032000,-198.35248581,9.023e-05,2]
[422232988,1778739032000,-500.0,9.023e-05,2]
[422232975,1778739032000,-500.0,9.023e-05,2]
[422232977,1778739032000,-500.0,9.023e-05,2]
[422232984,1778739032000,-500.0,9.023e-05,2]
[422232963,1778739032000,-2743.42,9e-05,2]
[422232981,1778739032000,-473.85999968,9.023e-05,2]
[422232969,1778739032000,-277.21641371,9e-05,2]
[422232967,1778739032000,-286.97976298,9e-05,2]
[422232965,1778739032000,-262.13852646,9e-05,2]
[422232961,1778739032000,-300.0,8.999e-05,2]
[422232959,1778739032000,-433.348,8.844e-05,2]
[422232957,1778739032000,-389.07123153,8.734e-05,2]
[422232982,1778739032000,-500.0,9.023e-05,2]
[422233028,1778739032000,-521.83526085,9.023e-05,2]
[422233018,1778739032000,-467.45789751,9.023e-05,2]
[422233022,1778739032000,-521.83526085,9.023e-05,2]
[422233026,1778739032000,-521.83526085,9.023e-05,2]
[422233053,1778739032000,-500.0,9.023e-05,2]
[422233055,1778739032000,-184.17318662,9.023e-05,2]
[422233049,1778739032000,-550.41195371,9.023e-05,2]
[422233051,1778739032000,-500.0,9.023e-05,2]
[422233045,1778739032000,-550.41195371,9.023e-05,2]
[422233043,1778739032000,-550.41195371,9.023e-05,2]
[422233041,1778739032000,-550.41195371,9.023e-05,2]
[422233047,1778739032000,-550.41195371,9.023e-05,2]
[422233030,1778739032000,-521.83526085,9.023e-05,2]
[422233037,1778739032000,-521.83526085,9.023e-05,2]
[422233035,1778739032000,-521.83526085,9.023e-05,2]
[422233033,1778739032000,-521.83526085,9.023e-05,2]
[422233031,1778739032000,-521.83526085,9.023e-05,2]
[422233024,1778739032000,-521.83526085,9.023e-05,2]
[422233020,1778739032000,-299.66033415,9.023e-05,2]
[422233056,1778739032000,-451.36391211,9.023e-05,2]
[422233039,1778739032000,-550.41195371,9.023e-05,2]
[422233233,1778739038000,-160.0,0.00010255,2]
[422233227,1778739038000,-537.6845,0.00010217,2]
[422233226,1778739038000,-152.0,0.00010001,7]
[422233224,1778739038000,-200.0,0.0001,7]
[422233217,1778739038000,-200.0,0.0001,7]
[422233221,1778739038000,-200.0,0.0001,7]
[422233219,1778739038000,-300.0,0.0001,2]
[422233216,1778739038000,-300.0,0.0001,2]
[422233238,1778739038000,-268.283,0.00010448,2]
[422233222,1778739038000,-300.0,0.0001,2]
[422233231,1778739038000,-161.64793294,0.00010255,2]
[422233250,1778739038000,-500.0,0.00010711,2]
[422233229,1778739038000,-160.0,0.00010255,2]
[422233236,1778739038000,-720.0,0.00010348,2]
[422233234,1778739038000,-537.81986511,0.00010272,2]
[422233245,1778739038000,-443.0,0.00010448,2]
[422233241,1778739038000,-647.0,0.00010448,2]
[422233249,1778739038000,-447.14637119,0.00010602,21]
[422233247,1778739038000,-185.0,0.00010448,2]
[422233212,1778739038000,-152.0,9.998e-05,7]
[422233254,1778739038000,-500.0,0.00010958,2]
[422233252,1778739038000,-459.10405321,0.00010734,2]
[422233256,1778739038000,-2332.8861,0.00010958,2]
[422233239,1778739038000,-1412.0,0.00010448,2]
[422233214,1778739038000,-1445.83442208,0.0001,2]
[422233195,1778739038000,-300.0,9.408e-05,2]
[422233201,1778739038000,-300.0,9.408e-05,2]
[422233159,1778739038000,-155.29122295,9.023e-05,2]
[422233161,1778739038000,-1770.52581261,9.024e-05,2]
[422233168,1778739038000,-395.36355435,9.024e-05,2]
[422233170,1778739038000,-4752.06329729,9.024e-05,2]
[422233184,1778739038000,-300.0,9.408e-05,2]
[422233189,1778739038000,-300.0,9.408e-05,2]
[422233186,1778739038000,-300.0,9.408e-05,2]
[422233187,1778739038000,-300.0,9.408e-05,2]
[422233191,1778739038000,-300.0,9.408e-05,2]
[422233193,1778739038000,-300.0,9.408e-05,2]
[422233174,1778739038000,-1344141.28422833,9.024e-05,2]
[422233205,1778739038000,-600.0,9.408e-05,2]
[422233176,1778739038000,-512.07827199,9.408e-05,2]
[422233180,1778739038000,-300.0,9.408e-05,2]
[422233182,1778739038000,-300.0,9.408e-05,2]
[422233178,1778739038000,-300.0,9.408e-05,2]
[422233196,1778739038000,-300.0,9.408e-05,2]
[422233261,1778739038000,-394.77521166,0.00010958,2]
[422233199,1778739038000,-300.0,9.408e-05,2]
[422233197,1778739038000,-300.0,9.408e-05,2]
[422233207,1778739038000,-1110.26652144,9.408e-05,2]
[422233210,1778739038000,-420.0,9.899e-05,2]
[422233209,1778739038000,-1140.5487684,9.425e-05,2]
[422233203,1778739038000,-300.0,9.408e-05,2]
[422233172,1778739038000,-52558.52039026,9.024e-05,2]
[422233268,1778739038000,-500.0,0.00010958,2]
[422233243,1778739038000,-2202.0,0.00010448,2]
[422233258,1778739038000,-500.0,0.00010958,2]
[422233321,1778739038000,-500.0,0.00010958,2]
[422233315,1778739038000,-749.4,0.00010958,2]
[422233323,1778739038000,-607.82702482,0.00010958,2]
[422233325,1778739038000,-500.0,0.00010958,2]
[422233327,1778739038000,-162.86938935,0.00010958,2]
[422233329,1778739038000,-500.0,0.00010958,2]
[422233332,1778739038000,-584.91,0.00010958,2]
[422233343,1778739038000,-500.0,0.00010958,2]
[422233334,1778739038000,-500.0,0.00010958,2]
[422233339,1778739038000,-1848.29,0.00010958,2]
[422233341,1778739038000,-500.0,0.00010958,2]
[422233319,1778739038000,-500.0,0.00010958,2]
[422233336,1778739038000,-500.0,0.00010958,2]
[422233347,1778739038000,-500.92738444,0.00010958,2]
[422233349,1778739038000,-500.0,0.00010958,2]
[422233353,1778739038000,-500.0,0.00010958,2]
[422233263,1778739038000,-500.0,0.00010958,2]
[422233357,1778739038000,-500.0,0.00010958,2]
[422233361,1778739038000,-500.0,0.00010958,2]
[422233365,1778739038000,-500.0,0.00010958,2]
[422233363,1778739038000,-500.0,0.00010958,2]
[422233355,1778739038000,-500.0,0.00010958,2]
[422233367,1778739038000,-500.0,0.00010958,2]
[422233359,1778739038000,-500.0,0.00010958,2]
[422233345,1778739038000,-500.0,0.00010958,2]
[422233317,1778739038000,-500.0,0.00010958,2]
[422233351,1778739038000,-500.0,0.00010958,2]
[422233307,1778739038000,-500.68661428,0.00010958,2]
[422233309,1778739038000,-500.0,0.00010958,2]
[422233267,1778739038000,-500.0,0.00010958,2]
[422233259,1778739038000,-500.0,0.00010958,2]
[422233265,1778739038000,-500.0,0.00010958,2]
[422233274,1778739038000,-500.0,0.00010958,2]
[422233272,1778739038000,-500.0,0.00010958,2]
[422233276,1778739038000,-500.0,0.00010958,2]
[422233286,1778739038000,-500.0,0.00010958,2]
[422233277,1778739038000,-500.0,0.00010958,2]
[422233282,1778739038000,-500.0,0.00010958,2]
[422233290,1778739038000,-500.0,0.00010958,2]
[422233291,1778739038000,-412.45760934,0.00010958,2]
[422233270,1778739038000,-500.0,0.00010958,2]
[422233279,1778739038000,-624.63935706,0.00010958,2]
[422233311,1778739038000,-500.0,0.00010958,2]
[422233281,1778739038000,-651.61,0.00010958,2]
[422233305,1778739038000,-745.8,0.00010958,2]
[422233303,1778739038000,-500.0,0.00010958,2]
[422233301,1778739038000,-500.0,0.00010958,2]
[422233313,1778739038000,-500.0,0.00010958,2]
[422233297,1778739038000,-500.0,0.00010958,2]
[422233296,1778739038000,-500.0,0.00010958,2]
[422233284,1778739038000,-500.0,0.00010958,2]
[422233294,1778739038000,-500.0,0.00010958,2]
[422233288,1778739038000,-500.0,0.00010958,2]
[422233299,1778739038000,-500.0,0.00010958,2]
[422233412,1778739039000,-500.0,0.00010958,2]
[422233422,1778739039000,-500.0,0.00010958,2]
[422233410,1778739039000,-500.0,0.00010958,2]
[422233414,1778739039000,-1002.19,0.00010958,2]
[422233418,1778739039000,-500.0,0.00010958,2]
[422233416,1778739039000,-500.0,0.00010958,2]
[422233420,1778739039000,-500.0,0.00010958,2]
[422233424,1778739039000,-500.0,0.00010958,2]
[422233428,1778739039000,-1630.41,0.00010958,2]
[422233435,1778739039000,-853.04,0.00010958,2]
[422233426,1778739039000,-500.0,0.00010958,2]
[422233437,1778739039000,-500.0,0.00010958,2]
[422233430,1778739039000,-500.0,0.00010958,2]
[422233439,1778739039000,-500.0,0.00010958,2]
[422233431,1778739039000,-599.85,0.00010958,2]
[422233408,1778739039000,-500.0,0.00010958,2]
[422233434,1778739039000,-500.0,0.00010958,2]
[422233406,1778739039000,-733.84,0.00010958,2]
[422233389,1778739039000,-500.0,0.00010958,2]
[422233403,1778739039000,-500.0,0.00010958,2]
[422233371,1778739039000,-500.0,0.00010958,2]
[422233369,1778739039000,-500.0,0.00010958,2]
[422233373,1778739039000,-500.0,0.00010958,2]
[422233375,1778739039000,-500.0,0.00010958,2]
[422233385,1778739039000,-500.0,0.00010958,2]
[422233387,1778739039000,-500.0,0.00010958,2]
[422233393,1778739039000,-500.0,0.00010958,2]
[422233379,1778739039000,-503.31908137,0.00010958,2]
[422233377,1778739039000,-500.95392268,0.00010958,2]
[422233391,1778739039000,-500.0,0.00010958,2]
[422233443,1778739039000,-500.0,0.00010958,2]
[422233381,1778739039000,-500.0,0.00010958,2]
[422233395,1778739039000,-500.0,0.00010958,2]
[422233383,1778739039000,-500.0,0.00010958,2]
[422233397,1778739039000,-500.0,0.00010958,2]
[422233399,1778739039000,-717.55,0.00010958,2]
[422233401,1778739039000,-500.0,0.00010958,2]
[422233404,1778739039000,-561.01,0.00010958,2]
[422233441,1778739039000,-500.0,0.00010958,2]
[422233504,1778739039000,-500.0,0.00010958,2]
[422233448,1778739039000,-500.0,0.00010958,2]
[422233497,1778739039000,-500.0,0.00010958,2]
[422233505,1778739039000,-500.0,0.00010958,2]
[422233501,1778739039000,-500.0,0.00010958,2]
[422233498,1778739039000,-500.0,0.00010958,2]
[422233502,1778739039000,-479.21563705,0.00010958,2]
[422233499,1778739039000,-500.0,0.00010958,2]
[422233500,1778739039000,-500.55878234,0.00010958,2]
[422233496,1778739039000,-500.0,0.00010958,2]
[422233503,1778739039000,-500.0,0.00010958,2]
[422233508,1778739039000,-500.0,0.00010958,2]
[422233509,1778739039000,-500.0,0.00010958,2]
[422233510,1778739039000,-1817.96,0.00010958,2]
[422233512,1778739039000,-500.0,0.00010958,2]
[422233511,1778739039000,-500.0,0.00010958,2]
[422233513,1778739039000,-455.95268666,0.00010958,2]
[422233445,1778739039000,-500.0,0.00010958,2]
[422233506,1778739039000,-500.0,0.00010958,2]
[422233489,1778739039000,-500.0,0.00010958,2]
[422233507,1778739039000,-500.0,0.00010958,2]
[422233483,1778739039000,-500.0,0.00010958,2]
[422233487,1778739039000,-500.0,0.00010958,2]
[422233450,1778739039000,-500.0,0.00010958,2]
[422233454,1778739039000,-500.0,0.00010958,2]
[422233462,1778739039000,-500.0,0.00010958,2]
[422233452,1778739039000,-715.16,0.00010958,2]
[422233464,1778739039000,-500.0,0.00010958,2]
[422233458,1778739039000,-500.0,0.00010958,2]
[422233456,1778739039000,-500.0,0.00010958,2]
[422233460,1778739039000,-500.0,0.00010958,2]
[422233466,1778739039000,-963.18,0.00010958,2]
[422233470,1778739039000,-500.0,0.00010958,2]
[422233473,1778739039000,-658.36,0.00010958,2]
[422233477,1778739039000,-500.0,0.00010958,2]
[422233479,1778739039000,-500.0,0.00010958,2]
[422233481,1778739039000,-500.0,0.00010958,2]
[422233485,1778739039000,-1742.98,0.00010958,2]
[422233468,1778739039000,-717.08,0.00010958,2]
[422233475,1778739039000,-500.0,0.00010958,2]
[422233545,1778739043000,-500.0,0.00010958,2]
[422233552,1778739043000,-501.16261459,0.00010958,2]
[422233551,1778739043000,-630.15,0.00010958,2]
[422233554,1778739043000,-500.0,0.00010958,2]
[422233553,1778739043000,-500.0,0.00010958,2]
[422233557,1778739043000,-500.0,0.00010958,2]
[422233555,1778739043000,-500.65837941,0.00010958,2]
[422233558,1778739043000,-565.13261765,0.00010958,2]
[422233546,1778739043000,-500.0,0.00010958,2]
[422233559,1778739043000,-500.0,0.00010958,2]
[422233556,1778739043000,-642.75156279,0.00010958,2]
[422233547,1778739043000,-753.18,0.00010958,2]